bitfinex-derivatives/quotes_SOLF0:USTF0_20240920
["timestamp","ask_amount","ask_price","bid_price","bid_amount"]
[1726804626344,3.4646,144.3,144.26,3.4653]
[1726804627546,3.4647,144.29,144.26,3.4653]
[1726804628249,3.4649,144.28,144.25,3.4655]
[1726804628452,16.64,144.3,144.25,3.4655]
[1726804628950,3.4648,144.29,144.25,3.4655]
[1726804629853,3.4648,144.29,144.26,3.4653]
[1726804634052,16.64,144.3,144.22,16.64]
[1726804634352,3.4649,144.28,144.22,16.64]
[1726804635155,3.4647,144.29,144.25,3.4655]
[1726804635355,3.4647,144.29,144.22,16.64]
[1726804636355,3.4649,144.28,144.22,16.64]
[1726804636755,3.4649,144.28,144.25,3.4655]
[1726804637861,3.42846632,144.31,144.22,16.64]
[1726804638054,16.64,144.31,144.22,16.64]
[1726804638255,20.02154392,144.31,144.23,16.64]
[1726804638650,20.02154392,144.31,144.26,3.4652]
[1726804639358,3.4646,144.3,144.26,3.4652]
[1726804639759,20.02154392,144.31,144.26,3.4652]
[1726804639959,3.4647,144.29,144.26,3.4652]
[1726804640457,6.84594392,144.31,144.27,3.465]
[1726804640859,3.38154392,144.31,144.27,3.465]
[1726804641058,1.4404,144.32,144.27,3.465]
[1726804641259,3.4646,144.3,144.27,3.465]
[1726804641460,3.4536453,144.29,144.26,3.4653]
[1726804641654,1.4404,144.32,144.26,3.4653]
[1726804641854,16.64,144.31,144.26,3.4653]
[1726804642060,20.17580892,144.31,144.26,3.4653]
[1726804642853,3.4647,144.29,144.26,3.4653]
[1726804644160,3.4645,144.3,144.27,3.4651]
[1726804645054,3.4645,144.3,144.23,16.64]
[1726804645358,3.53580892,144.31,144.23,16.64]
[1726804645560,3.53580892,144.31,144.25,16.64]
[1726804646659,4.9044,144.32,144.25,16.64]
[1726804646862,1.4404,144.32,144.25,16.64]
[1726804647753,1.4404,144.32,144.29,3.4645]
[1726804647959,4.9044,144.32,144.29,3.4645]
[1726804649466,3.4642,144.31,144.28,3.4648]
[1726804649664,228.0,144.43,144.29,16.64]
[1726804649864,3.4633,144.35,144.29,16.64]
[1726804650066,16.64,144.36,144.27,16.64]
[1726804650368,16.64,144.34,144.27,16.64]
[1726804650569,16.64,144.36,144.3,3.4643]
[1726804650965,16.64,144.36,144.28,16.64]
[1726804651463,2.719,144.38,144.28,16.64]
[1726804651663,19.359,144.38,144.28,16.64]
[1726804651863,3.4629,144.37,144.2,3.39610311]
[1726804652058,10.65,144.35,144.31,10.65]
[1726804652263,10.65,144.36,144.34,3.4634]
[1726804652771,2.719,144.38,144.34,3.4634]
[1726804652966,10.65,144.37,144.35,3.4632]
[1726804653161,10.65,144.37,144.32,10.65]
[1726804653564,10.65,144.37,144.24,7.60374756]
[1726804653565,10.65,144.37,144.34,3.4633]
[1726804653766,10.65,144.36,144.32,10.65]
[1726804653966,16.64,144.37,144.29,16.64]
[1726804654171,20.1029,144.37,144.33,3.4637]
[1726804655369,16.64,144.37,144.29,16.64]
[1726804655576,16.64,144.36,144.27,16.64]
[1726804655763,16.64,144.35,144.27,16.64]
[1726804655963,3.4639,144.33,144.28,3.4648]
[1726804656172,3.46559006,144.33,144.28,3.4648]
[1726804656374,16.64,144.34,144.28,3.4648]
[1726804656577,16.64,144.34,144.27,3.4651]
[1726804656765,16.64,144.33,144.27,3.4651]
[1726804656968,3.464,144.32,144.27,3.4651]
[1726804657170,3.464,144.32,144.28,3.4649]
[1726804657573,3.43986395,144.33,144.27,16.64]
[1726804658371,16.64,144.35,144.27,16.64]
[1726804658681,2.719,144.38,144.25,16.64]
[1726804658978,3.464,144.32,144.25,16.64]
[1726804659174,3.42322783,144.31,144.25,16.64]
[1726804659371,3.42322783,144.31,144.27,3.465]
[1726804659574,6.88742783,144.31,144.27,3.465]
[1726804659772,3.4642,144.31,144.25,16.64]
[1726804660074,3.4642,144.31,144.27,3.4651]
[1726804660276,7.01566457,144.31,144.27,3.4651]
[1726804660477,3.4642,144.31,144.27,3.4651]
[1726804660980,6.92312616,144.31,144.27,3.4651]
[1726804661178,3.45892616,144.31,144.27,3.4651]
[1726804661581,3.45892616,144.31,144.28,3.4649]
[1726804661772,1.3273,144.33,144.27,16.64]
[1726804661971,4.85207746,144.33,144.27,16.64]
[1726804662178,4.7912,144.33,144.27,16.64]
[1726804662479,1.3273,144.33,144.27,16.64]
[1726804662674,3.4644,144.31,144.27,16.64]
[1726804663374,3.464,144.32,144.28,3.4647]
[1726804665075,4.86871358,144.33,144.27,16.64]
[1726804666480,8.33261358,144.33,144.29,3.4646]
[1726804667185,4.86871358,144.33,144.25,16.64]
[1726804667382,2.8706,144.32,144.25,16.64]
[1726804667679,3.4642,144.31,144.27,3.465]
[1726804669184,6.3346,144.32,144.28,3.4649]
[1726804669775,3.4643,144.31,144.27,3.4651]
[1726804669975,2.8706,144.32,144.27,3.4651]
[1726804670386,3.4644,144.3,144.27,3.4651]
[1726804670585,2.8706,144.32,144.27,3.4651]
[1726804670885,3.4643,144.31,144.28,3.4649]
[1726804671284,2.8706,144.32,144.28,3.4649]
[1726804671684,2.8706,144.32,144.29,3.4645]
[1726804672183,2.8706,144.32,144.26,16.64]
[1726804673992,2.8706,144.32,144.29,10.65]
[1726804674886,6.3346,144.32,144.29,14.1146]
[1726804677187,2.8706,144.32,144.3,10.65]
[1726804677387,7.00521358,144.33,144.3,10.65]
[1726804677590,7.00521358,144.33,144.3,14.1144]
[1726804677779,3.4633,144.35,144.32,10.65]
[1726804677984,3.4633,144.35,144.33,10.65]
[1726804678283,3.4633,144.35,144.31,10.65]
[1726804678284,3.4634,144.35,144.31,10.65]
[1726804678478,3.4634,144.35,144.32,10.65]
[1726804678687,3.4634,144.35,144.32,14.1139]
[1726804678885,3.4636,144.34,144.32,10.65]
[1726804679087,2.9222,144.38,144.33,10.65]
[1726804679283,2.9222,144.38,144.35,10.65]
[1726804679484,6.3847,144.38,144.35,10.65]
[1726804680490,10.65,144.36,144.32,10.65]
[1726804680687,2.9222,144.38,144.31,10.65]
[1726804680688,10.65,144.35,144.31,10.65]
[1726804680891,10.65,144.35,144.31,14.114]
[1726804681192,10.65,144.35,144.31,10.65]
[1726804681581,3.4633,144.35,144.33,10.65]
[1726804682993,2.9222,144.38,144.29,10.65]
[1726804683290,10.65,144.34,144.29,10.65]
[1726804683480,3.4641,144.32,144.29,14.1145]
[1726804683685,3.41270368,144.33,144.31,10.65]
[1726804683983,10.65,144.34,144.31,10.65]
[1726804684191,3.49206082,144.33,144.31,10.65]
[1726804684389,6.95586082,144.33,144.31,10.65]
[1726804684585,6.95586082,144.33,144.32,10.65]
[1726804685183,3.4636,144.34,144.32,10.65]
[1726804685389,1.3461,144.37,144.33,10.65]
[1726804685591,3.4633,144.35,144.33,10.65]
[1726804686489,3.4635,144.34,144.32,10.65]
[1726804687289,10.65,144.36,144.32,10.65]
[1726804687899,14.1131,144.36,144.32,14.1137]
[1726804688087,3.4631,144.36,144.33,10.65]
[1726804688385,3.4631,144.36,144.34,10.65]
[1726804688782,3.4628,144.37,144.34,10.65]
[1726804689094,13.5722,144.38,144.35,3.4632]
[1726804689283,3.4629,144.37,144.34,10.65]
[1726804689486,10.65,144.37,144.27,6.34904079]
[1726804689686,10.65,144.37,144.32,10.65]
[1726804689886,10.65,144.37,144.33,10.65]
[1726804690090,13.5722,144.38,144.33,10.65]
[1726804690394,13.5722,144.38,144.35,14.113]
[1726804690395,17.0349,144.38,144.35,14.113]
[1726804691092,17.0349,144.38,144.35,3.463]
[1726804691389,3.4628,144.37,144.34,14.1134]
[1726804691588,3.4628,144.37,144.34,3.4634]
[1726804691996,3.463,144.36,144.33,14.1136]
[1726804692795,3.463,144.36,144.23,92.58226466]
[1726804692796,10.65,144.36,144.32,10.65]
[1726804693385,10.65,144.36,144.31,10.65]
[1726804693594,10.65,144.36,144.33,10.65]
[1726804695394,3.464,144.32,144.3,10.65]
[1726804695597,10.65,144.35,144.3,10.65]
[1726804695789,1.3531,144.37,144.31,10.65]
[1726804695994,10.65,144.35,144.31,10.65]
[1726804696788,10.65,144.36,144.31,10.65]
[1726804697694,10.65,144.35,144.31,10.65]
[1726804698199,3.4639,144.33,144.31,10.65]
[1726804698796,3.4641,144.32,144.31,10.65]
[1726804698998,3.4641,144.32,144.3,10.65]
[1726804700300,14.08778443,144.33,144.29,10.65]
[1726804700500,14.08778443,144.33,144.23,92.58226466]
[1726804700501,10.65,144.32,144.23,92.58226466]
[1726804700702,14.1421984,144.32,144.27,10.65]
[1726804701200,3.4646,144.3,144.28,10.65]
[1726804701601,3.4648,144.29,144.26,3.4652]
[1726804701793,10.65,144.31,144.26,14.1152]
[1726804701999,10.65,144.31,144.27,10.65]
[1726804702197,1.3531,144.37,144.27,10.65]
[1726804702400,1.3531,144.37,144.27,14.1152]
[1726804702401,10.65,144.31,144.27,14.1152]
[1726804702703,10.65,144.31,144.23,92.58226466]
[1726804702704,14.05349334,144.32,144.28,10.65]
[1726804703304,3.4643,144.31,144.28,14.1149]
[1726804703503,3.40349334,144.32,144.3,10.65]
[1726804703702,1.3531,144.37,144.32,3.4639]
[1726804704003,10.65,144.36,144.32,10.65]
[1726804704510,1.461,144.38,144.31,10.65]
[1726804704704,1.461,144.38,144.32,10.65]
[1726804704705,10.65,144.36,144.32,10.65]
[1726804704903,3.4634,144.35,144.32,14.1139]
[1726804705503,10.65,144.36,144.24,6.35983066]
[1726804705702,1.461,144.38,144.31,10.65]
[1726804705703,10.65,144.35,144.31,10.65]
[1726804706210,3.4636,144.34,144.31,10.65]
[1726804706700,3.4638,144.33,144.31,10.65]
[1726804707109,10.65,144.35,144.31,10.65]
[1726804708405,3.4636,144.34,144.31,14.1141]
[1726804710110,3.4636,144.34,144.32,10.65]
[1726804710811,3.4633,144.35,144.32,14.1139]
[1726804711108,10.65,144.36,144.33,10.65]
[1726804711509,14.1132,144.36,144.33,14.1137]
[1726804711809,10.65,144.36,144.33,10.65]
[1726804712012,3.4634,144.35,144.32,14.1139]
[1726804713009,1.461,144.38,144.32,10.65]
[1726804713209,1.461,144.38,144.34,10.65]
[1726804713611,4.9238,144.38,144.34,10.65]
[1726804713808,4.9238,144.38,144.33,14.1135]
[1726804713809,10.65,144.37,144.33,14.1135]
[1726804714111,14.1129,144.37,144.33,14.1135]
[1726804714314,14.1129,144.37,144.33,10.65]
[1726804716711,3.4629,144.37,144.33,10.65]
[1726804716914,14.1129,144.37,144.33,10.65]
[1726804717107,14.1129,144.37,144.33,14.1137]
[1726804717306,10.65,144.37,144.33,10.65]
[1726804718218,10.65,144.34,144.29,6.35827147]
[1726804718416,10.65,144.34,144.3,10.65]
[1726804718712,1.461,144.38,144.3,14.1144]
[1726804718917,10.65,144.34,144.3,14.1144]
[1726804721019,14.1135,144.34,144.3,14.1144]
[1726804721220,10.65,144.34,144.3,14.1144]
[1726804721516,10.65,144.35,144.31,10.65]
[1726804722217,3.4637,144.34,144.31,10.65]
[1726804723518,3.4637,144.34,144.3,10.65]
[1726804723816,3.4637,144.34,144.3,14.1143]
[1726804724016,14.1137,144.34,144.3,14.1143]
[1726804724825,10.65,144.31,144.23,92.58226466]
[1726804725018,10.65,144.31,144.27,10.65]
[1726804725222,10.65,144.31,144.28,14.1149]
[1726804725522,6.87357462,144.32,144.29,10.65]
[1726804725821,17.52357462,144.32,144.29,10.65]
[1726804728124,3.4642,144.31,144.28,14.1149]
[1726804728320,3.4642,144.31,144.27,3.4651]
[1726804728517,14.1142,144.31,144.27,14.1151]
[1726804728725,14.1142,144.31,144.28,10.65]
[1726804728924,3.40947462,144.32,144.23,6.3596131]
[1726804729124,10.65,144.32,144.28,10.65]
[1726804729324,10.65,144.32,144.28,14.1147]
[1726804729627,4.96978343,144.33,144.28,10.65]
[1726804729927,10.65,144.32,144.28,14.1148]
[1726804730121,10.65,144.32,144.27,10.65]
[1726804730322,14.114,144.32,144.28,14.1148]
[1726804730722,14.114,144.32,144.28,10.65]
[1726804730919,10.65,144.32,144.28,10.65]
[1726804731120,10.65,144.32,144.29,3.4645]
[1726804732818,14.114,144.32,144.29,3.4645]
[1726804734220,10.65,144.32,144.29,14.1145]
[1726804734825,19.08368343,144.33,144.29,14.1145]
[1726804736329,1.4459,144.39,144.32,10.65]
[1726804736527,1.4459,144.39,144.34,10.65]
[1726804736528,10.65,144.38,144.34,10.65]
[1726804736726,10.65,144.37,144.33,10.65]
[1726804736930,14.1129,144.37,144.33,10.65]
[1726804737327,10.65,144.36,144.32,10.65]
[1726804737830,10.65,144.35,144.32,3.4639]
[1726804738329,3.4632,144.36,144.32,3.4639]
[1726804738525,10.65,144.35,144.32,3.4639]
[1726804740737,2.8131,144.39,144.34,10.65]
[1726804740931,14.15374148,144.53,144.38,10.65]
[1726804741129,147.13774722,144.57,144.36,3.41697182]
[1726804741130,2.6677,144.46,144.36,3.41697182]
[1726804741324,2.6677,144.46,144.43,10.65]
[1726804741530,2.6677,144.46,144.25,6.35063891]
[1726804741531,3.5375586,144.48,144.41,3.53478649]
[1726804741734,236.51774722,144.57,144.46,10.65]
[1726804741735,10.65,144.5,144.46,10.65]
[1726804742036,10.65,144.52,144.48,10.65]
[1726804742225,4.0364,144.56,144.48,10.65]
[1726804742428,4.0364,144.56,144.36,6.33886465]
[1726804742429,10.65,144.53,144.36,6.33886465]
[1726804742729,10.65,144.51,144.37,6.33886465]
[1726804742931,4.0364,144.56,144.35,143.40546557]
[1726804742932,4.0364,144.56,144.47,14.1103]
[1726804743135,10.65,144.52,144.47,14.1103]
[1726804743329,14.17265851,144.52,144.47,14.1103]
[1726804743736,14.17265851,144.52,144.47,3.4603]
[1726804743931,6.98185851,144.52,144.47,3.4603]
[1726804744235,8.51774722,144.57,144.51,16.61]
[1726804744831,8.51774722,144.57,144.52,16.61]
[1726804745337,8.51774722,144.57,144.56,3.4582]
[1726804745536,8.51774722,144.57,144.52,16.61]
[1726804745938,8.51774722,144.57,144.51,3.4592]
[1726804746143,8.51774722,144.57,144.5,16.61]
[1726804746338,8.51774722,144.57,144.52,16.61]
[1726804746929,8.51774722,144.57,144.54,16.61]
[1726804747432,228.0,144.76,144.55,16.61]
[1726804747636,16.61,144.63,144.48,2.5774]
[1726804747835,3.47290341,144.62,144.55,3.4584]
[1726804748048,3.47290341,144.62,144.53,16.61]
[1726804748241,16.61,144.62,144.53,16.61]
[1726804748446,16.61,144.62,144.55,16.61]
[1726804748743,16.61,144.62,144.53,16.61]
[1726804748939,3.457,144.61,144.54,3.4585]
[1726804749146,16.61,144.61,144.51,16.61]
[1726804749438,2.8625,144.6,144.51,16.61]
[1726804749833,16.61,144.59,144.51,16.61]
[1726804750033,2.8625,144.6,144.49,16.61]
[1726804750240,16.61,144.58,144.49,16.61]
[1726804750442,2.8625,144.6,144.51,16.61]
[1726804750640,3.4577,144.58,144.52,3.4589]
[1726804751248,3.4577,144.58,144.53,3.4589]
[1726804751544,2.8625,144.6,144.53,3.4589]
[1726804751545,6.32,144.6,144.53,16.61]
[1726804751849,6.32,144.6,144.54,3.4585]
[1726804752049,2.8625,144.6,144.53,16.61]
[1726804752445,2.8625,144.6,144.54,3.4586]
[1726804752848,16.61,144.59,144.51,16.61]
[1726804753049,3.4575,144.59,144.53,3.4589]
[1726804753348,1.4524,144.62,144.53,3.4589]
[1726804753349,1.4524,144.62,144.53,16.61]
[1726804753543,16.61,144.65,144.58,3.4577]
[1726804753746,2.682,144.64,144.56,16.61]
[1726804753949,19.292,144.64,144.56,16.61]
[1726804754143,19.292,144.64,144.57,3.4579]
[1726804754446,19.292,144.64,144.56,16.61]
[1726804754749,2.682,144.64,144.56,16.61]
[1726804754951,16.61,144.63,144.54,16.61]
[1726804755248,3.4568,144.62,144.56,3.458]
[1726804755650,3.45730715,144.63,144.56,16.61]
[1726804755844,3.4567,144.63,144.56,16.61]
[1726804756044,22.76176093,144.64,144.56,16.61]
[1726804756247,2.682,144.64,144.58,16.61]
[1726804756439,2.682,144.64,144.51,3.53237576]
[1726804756440,2.682,144.64,144.56,16.61]
[1726804756646,2.682,144.64,144.57,16.61]
[1726804756946,3.4568,144.63,144.57,20.0678]
[1726804757150,6.22509984,144.64,144.55,16.61]
[1726804757346,16.61,144.62,144.53,16.61]
[1726804757650,3.4572,144.61,144.53,16.61]
[1726804758748,3.4574,144.6,144.53,16.61]
[1726804758946,16.61,144.62,144.53,16.61]
[1726804759149,16.61,144.61,144.53,16.61]
[1726804759455,1.4094,144.63,144.54,16.61]
[1726804759752,16.61,144.62,144.54,16.61]
[1726804759953,3.54309984,144.64,144.55,16.61]
[1726804760149,16.61,144.64,144.55,16.61]
[1726804760341,3.4568,144.62,144.55,16.61]
[1726804761448,3.4568,144.62,144.57,3.4578]
[1726804761647,3.4566,144.63,144.56,16.61]
[1726804761952,3.4566,144.63,144.58,3.4575]
[1726804762344,3.47622835,144.64,144.56,16.61]
[1726804762550,16.61,144.65,144.56,16.61]
[1726804762746,3.39873282,144.64,144.56,16.61]
[1726804762943,3.39873282,144.64,144.52,3.50113763]
[1726804762944,2.7456,144.68,144.58,16.61]
[1726804763150,16.61,144.66,144.58,16.61]
[1726804763550,16.61,144.66,144.6,3.4572]
[1726804763746,2.7456,144.68,144.57,16.61]
[1726804763952,16.61,144.65,144.57,16.61]
[1726804764152,3.4565,144.64,144.59,3.4574]
[1726804764351,19.3556,144.68,144.59,16.61]
[1726804764851,2.7456,144.68,144.6,16.61]
[1726804765051,19.3556,144.68,144.58,16.61]
[1726804765247,211.9766,144.77,144.59,3.4574]
[1726804765248,3.4563,144.64,144.59,3.4574]
[1726804765454,56.9066,144.77,144.57,16.61]
[1726804765455,16.61,144.66,144.57,16.61]
[1726804765846,16.61,144.66,144.59,3.4573]
[1726804765847,3.4565,144.64,144.59,3.4573]
[1726804766051,3.39433365,144.65,144.57,16.61]
[1726804766249,16.61,144.65,144.57,16.61]
[1726804766450,16.61,144.63,144.55,16.61]
[1726804766654,16.61,144.61,144.53,16.61]
[1726804767054,16.61,144.61,144.55,3.4584]
[1726804767255,18.0023,144.61,144.53,16.61]
[1726804767658,1.3923,144.61,144.55,16.61]
[1726804768154,3.4575,144.6,144.55,20.0684]
[1726804768352,1.3923,144.61,144.55,20.0684]
[1726804768857,18.0023,144.61,144.54,3.4587]
[1726804769058,19.4656,144.61,144.53,16.61]
[1726804769357,3.4579,144.58,144.53,16.61]
[1726804770059,3.4579,144.58,144.54,3.4585]
[1726804770257,3.4576,144.59,144.54,3.4585]
[1726804770450,2.8556,144.61,144.55,16.61]
[1726804770653,6.3127,144.61,144.55,16.61]
[1726804770853,2.8556,144.61,144.55,16.61]
[1726804771259,6.3128,144.61,144.55,16.61]
[1726804771454,2.8556,144.61,144.55,16.61]
[1726804772555,2.8556,144.61,144.48,3.50736495]
[1726804772751,2.8556,144.61,144.54,16.61]
[1726804772953,3.4574,144.6,144.56,3.4582]
[1726804773960,2.8556,144.61,144.55,16.61]
[1726804774162,1.3923,144.61,144.55,16.61]
[1726804774351,1.3923,144.61,144.58,3.4576]
[1726804774753,1.3923,144.61,144.55,16.61]
[1726804775157,18.0023,144.61,144.54,16.61]
[1726804775464,3.4577,144.59,144.54,20.0685]
[1726804776060,16.61,144.64,144.56,3.4582]
[1726804776261,16.61,144.64,144.56,16.61]
[1726804776859,3.4572,144.61,144.57,3.4578]
[1726804777065,2.8244,144.65,144.57,16.61]
[1726804777563,3.4569,144.62,144.58,3.4575]
[1726804777765,2.8244,144.65,144.57,16.61]
[1726804777960,19.4344,144.65,144.57,16.61]
[1726804778159,19.4344,144.65,144.57,20.0679]
[1726804778960,3.4571,144.61,144.57,20.0679]
[1726804779263,19.4344,144.65,144.58,3.4577]
[1726804779461,3.4568,144.62,144.57,16.61]
[1726804779661,19.4344,144.65,144.55,16.61]
[1726804779866,16.61,144.64,144.55,16.61]
[1726804780056,2.8244,144.65,144.58,3.4577]
[1726804780057,3.4569,144.62,144.58,3.4577]
[1726804780261,2.8244,144.65,144.58,3.4577]
[1726804781064,2.8244,144.65,144.57,20.0679]
[1726804781666,19.4344,144.65,144.57,20.0679]
[1726804782066,19.4344,144.65,144.58,3.4576]
[1726804782465,3.457,144.62,144.57,16.61]
[1726804782765,19.4344,144.65,144.57,20.0678]
[1726804782972,3.4572,144.61,144.55,16.61]
[1726804783273,19.4344,144.65,144.55,16.61]
[1726804783666,3.4569,144.62,144.55,16.61]
[1726804783865,3.4569,144.62,144.58,3.4576]
[1726804784370,2.8244,144.65,144.58,3.4577]
[1726804784570,2.8244,144.65,144.57,16.61]
[1726804785167,19.4344,144.65,144.57,16.61]
[1726804785372,3.457,144.62,144.58,3.4577]
[1726804785676,2.8244,144.65,144.57,16.61]
[1726804786073,1.4209,144.65,144.6,3.457]
[1726804786474,1.4359,144.66,144.59,16.61]
[1726804786673,1.4359,144.66,144.54,20.03260421]
[1726804786674,1.3414,144.7,144.61,16.61]
[1726804786874,7.62028247,144.7,144.61,16.61]
[1726804787272,3.4557,144.67,144.63,3.4564]
[1726804787575,7.62028247,144.7,144.63,3.4564]
[1726804787969,6.27888247,144.7,144.61,16.61]
[1726804788168,2.8587,144.7,144.63,16.61]
[1726804788776,2.8587,144.7,144.61,16.61]
[1726804788977,3.4558,144.67,144.61,16.61]
[1726804789174,19.4687,144.7,144.61,16.61]
[1726804789370,3.4556,144.67,144.61,16.61]
[1726804789578,3.4556,144.67,144.63,3.4563]
[1726804789778,19.4687,144.7,144.61,16.61]
[1726804789976,3.4558,144.66,144.62,3.4566]
[1726804790176,4.2658,144.7,144.6,16.61]
[1726804790377,16.61,144.68,144.6,16.61]
[1726804790574,16.61,144.69,144.62,3.4566]
[1726804790880,16.61,144.69,144.6,16.61]
[1726804791071,3.456,144.66,144.6,16.61]
[1726804791375,16.61,144.69,144.6,16.61]
[1726804791583,3.4562,144.65,144.6,16.61]
[1726804791782,3.4562,144.65,144.61,3.4568]
[1726804791987,3.4562,144.65,144.6,16.61]
[1726804792582,3.4559,144.66,144.62,3.4567]
[1726804792783,16.61,144.69,144.62,3.4567]
[1726804792983,3.4553,144.69,144.6,16.61]
[1726804793185,3.54024629,144.71,144.64,16.61]
[1726804793384,16.61,144.72,144.64,16.61]
[1726804793576,20.13972997,144.72,144.64,20.0662]
[1726804793782,16.61,144.7,144.62,16.61]
[1726804794180,16.61,144.7,144.63,3.4564]
[1726804794181,3.4557,144.67,144.63,3.4564]
[1726804794379,3.4557,144.67,144.62,16.61]
[1726804794582,20.13972997,144.72,144.63,16.61]
[1726804794782,3.4551,144.69,144.65,3.456]
[1726804794982,20.13972997,144.72,144.65,3.456]
[1726804795384,3.4553,144.69,144.65,3.456]
[1726804795586,20.13972997,144.72,144.65,3.456]
[1726804795785,3.4548,144.71,144.67,16.61]
[1726804796088,20.8882,144.76,144.67,16.61]
[1726804796290,16.61,144.74,144.65,16.61]
[1726804796681,4.2782,144.76,144.61,20.04603257]
[1726804796879,2.8678,144.76,144.7,16.61]
[1726804797079,2.8678,144.76,144.68,16.61]
[1726804797287,3.454,144.74,144.68,16.61]
[1726804797486,2.8678,144.76,144.7,16.61]
[1726804797682,50.0,144.77,144.7,16.61]
[1726804797982,3.4538,144.75,144.71,3.4544]
[1726804798189,50.0,144.77,144.7,16.61]
[1726804798892,50.0,144.77,144.61,20.04603257]
[1726804798893,50.0,144.77,144.72,16.61]
[1726804799682,50.0,144.77,144.69,16.61]
[1726804799890,50.0,144.77,144.71,16.61]
[1726804800491,66.61,144.77,144.69,3.455]
[1726804800685,3.4541,144.74,144.69,3.455]
[1726804800894,66.61,144.77,144.69,3.455]
[1726804801284,50.0,144.77,144.61,3.50172448]
[1726804801589,50.0,144.77,144.71,16.61]
[1726804801790,3.4545,144.72,144.67,16.61]
[1726804801985,16.61,144.76,144.67,16.61]
[1726804802187,16.61,144.75,144.66,16.61]
[1726804803291,16.61,144.73,144.64,16.61]
[1726804803492,2.8483,144.72,144.66,16.61]
[1726804803787,16.61,144.76,144.68,16.61]
[1726804803985,16.61,144.74,144.66,16.61]
[1726804804182,2.9312,144.76,144.64,16.61]
[1726804804389,3.4554,144.68,144.64,20.0663]
[1726804805191,3.44316277,144.71,144.64,16.61]
[1726804805385,2.9312,144.76,144.63,16.61]
[1726804805591,1.4031,144.7,144.63,16.61]
[1726804805784,3.48326386,144.69,144.63,16.61]
[1726804806294,3.4558,144.67,144.63,16.61]
[1726804806493,3.48326386,144.69,144.63,16.61]
[1726804807390,3.4557,144.67,144.63,20.0665]
[1726804807591,3.48326386,144.69,144.63,16.61]
[1726804808393,1.4031,144.7,144.61,16.61]
[1726804808695,18.0451,144.68,144.61,16.61]
[1726804808890,1.4351,144.68,144.59,16.61]
[1726804809090,16.61,144.67,144.59,16.61]
[1726804809288,3.49273146,144.66,144.59,16.61]
[1726804809496,3.4565,144.64,144.6,3.4571]
[1726804809790,3.4565,144.64,144.61,16.61]
[1726804809998,18.0451,144.68,144.61,16.61]
[1726804810199,1.4351,144.68,144.61,16.61]
[1726804810690,4.89767519,144.68,144.61,16.61]
[1726804810892,3.4563,144.64,144.61,16.61]
[1726804811091,4.89767519,144.68,144.61,16.61]
[1726804811296,3.4568,144.62,144.59,16.61]